bitfinex/quotes_ETHUSD_20220311
["timestamp","ask_amount","ask_price","bid_price","bid_amount"]
[1646982948519,5.08881959,2596.4,2595.7,0.96294]
[1646982948719,1.58881959,2596.3,2595.7,0.96294]
[1646982948920,1.58881959,2596.3,2596.0,1.31075621]
[1646982950120,1.88881959,2596.3,2596.0,1.31075621]
[1646982950326,1.58881959,2596.2,2596.0,1.31075621]
[1646982951568,1.5906014,2596.2,2596.0,1.31075621]
[1646982952569,1.58881959,2596.2,2596.0,1.31075621]
[1646982952772,1.5929425,2596.2,2596.0,1.31075621]
[1646982953773,1.58881959,2596.2,2596.0,0.69982177]
[1646982953974,1.58881959,2596.2,2595.6,5.03798182]
[1646982954173,1.59300811,2596.2,2596.1,1.31075621]
[1646982954673,1.59767017,2596.2,2596.1,1.31075621]
[1646982954877,0.39767017,2596.2,2596.1,1.31075621]
[1646982955115,0.39348165,2596.2,2596.1,1.31075621]
[1646982955520,0.30418847,2596.3,2596.1,1.31075621]
[1646982956117,0.3,2596.3,2596.1,1.31075621]
[1646982956417,0.00418843,2596.3,2596.1,1.31075621]
[1646982957021,0.00418843,2596.3,2596.2,0.08459999]
[1646982957420,3.5,2596.6,2596.2,0.08459999]
[1646982957622,0.00396703,2596.4,2596.2,0.08459999]
[1646982958622,3.5,2596.6,2596.2,0.08459999]
[1646982959072,0.00396698,2596.4,2596.2,0.08459999]
[1646982959473,0.00396698,2596.4,2596.3,1.31075621]
[1646982959673,0.00396698,2596.4,2596.3,1.39202475]
[1646982959872,3.5,2596.6,2596.3,1.39202475]
[1646982960076,3.5,2596.6,2596.4,0.07137676]
[1646982961382,3.50441027,2596.6,2596.4,0.07137676]
[1646982962178,3.50441027,2596.6,2596.3,1.38541797]
[1646982962380,0.462,2596.5,2596.3,1.38541797]
[1646982962619,0.462,2596.5,2595.8,0.07796339]
[1646982962620,5.5,2596.3,2595.8,0.07796339]
[1646982962825,5.5,2596.3,2595.4,0.08815599]
[1646982962826,5.65661867,2596.2,2595.4,0.08815599]
[1646982963326,6.95661867,2596.2,2595.4,0.08815599]
[1646982963723,0.0044109,2595.9,2595.4,0.08815599]
[1646982964724,6.95661867,2596.2,2595.4,0.08815599]
[1646982964925,0.00441499,2595.8,2595.4,0.08815599]
[1646982965730,3.5,2595.9,2595.4,0.08815599]
[1646982965931,3.8,2595.9,2595.4,0.08815599]
[1646982966127,0.00441495,2595.8,2595.4,0.08815599]
[1646982966967,3.8,2595.9,2595.4,0.08815599]
[1646982967166,0.00441495,2595.8,2595.4,0.08815599]
[1646982968175,3.8,2595.9,2595.4,0.08815599]
[1646982968478,0.00441495,2595.8,2595.4,0.08815599]
[1646982969374,3.8,2595.9,2595.4,0.08815599]
[1646982969574,0.00131845,2595.8,2595.4,0.08815599]
[1646982969775,0.0057334,2595.8,2595.4,0.08815599]
[1646982969977,0.0057334,2595.8,2595.1,1.17851623]
[1646982970231,0.762,2595.7,2595.1,0.00441623]
[1646982970430,3.5,2595.6,2595.1,0.00441623]
[1646982970627,3.5,2595.6,2594.9,0.0862441]
[1646982970628,0.462,2595.5,2594.9,0.0862441]
[1646982970831,0.762,2595.5,2594.9,0.0862441]
[1646982971033,14.50530674,2595.3,2594.9,0.0862441]
[1646982971241,14.50530674,2595.3,2594.5,0.25]
[1646982971242,10.26354,2595.2,2594.5,0.25]
[1646982971433,10.26354,2595.2,2594.2,0.0433394]
[1646982971436,11.80947538,2595.1,2594.2,0.0433394]
[1646982971629,8.32144167,2595.2,2594.2,0.0433394]
[1646982971630,11.80147628,2594.9,2594.2,0.0433394]
[1646982971829,1.0,2594.6,2594.2,0.0433394]
[1646982972031,3.548699,2594.5,2594.2,0.0433394]
[1646982972229,0.462,2594.5,2594.2,0.0433394]
[1646982972430,0.04548456,2594.4,2594.2,0.0433394]
[1646982972629,0.462,2594.3,2594.2,0.0433394]
[1646982973031,0.762,2594.3,2594.2,0.0433394]
[1646982973232,1.3,2594.6,2594.2,0.0433394]
[1646982973233,1.0,2594.6,2594.5,1.07091988]
[1646982973536,1.0,2595.1,2594.5,1.07091988]
[1646982973537,0.462,2595.2,2594.5,3.0]
[1646982973731,0.462,2595.2,2594.6,0.0816597]
[1646982973972,0.462,2595.2,2594.8,3.0]
[1646982974574,0.462,2595.2,2594.8,3.00219539]
[1646982974973,0.462,2595.2,2594.8,0.00219539]
[1646982975377,1.58943794,2595.1,2594.4,0.07337522]
[1646982975576,0.462,2595.1,2594.4,0.06025242]
[1646982975779,0.462,2595.1,2594.9,0.00408288]
[1646982976577,0.462,2595.1,2594.5,3.0]
[1646982976979,0.462,2595.1,2594.9,0.00408288]
[1646982977820,0.462,2595.1,2594.6,0.82949332]
[1646982978025,0.462,2595.1,2594.6,3.82949332]
[1646982978226,0.462,2595.1,2594.9,0.00408288]
[1646982979125,0.462,2595.1,2594.6,3.82949332]
[1646982979325,0.462,2595.1,2594.9,0.00409494]
[1646982979727,0.46331969,2595.1,2594.9,0.00409494]
[1646982979928,0.00131969,2595.1,2595.0,0.94983172]
[1646982980129,0.00131969,2595.1,2595.0,3.94983172]
[1646982980329,0.00131969,2595.1,2595.0,5.10043172]
[1646982980731,0.00131969,2595.1,2595.0,2.10043172]
[1646982980928,0.00131969,2595.1,2595.0,5.10043172]
[1646982982384,9.38348991,2596.1,2595.0,1.1506]
[1646982982587,0.96334,2595.9,2595.0,1.1506]
[1646982982786,0.05331054,2595.7,2595.0,1.1506]
[1646982982987,2.05119606,2595.6,2595.0,1.1506]
[1646982983186,0.05405551,2595.5,2595.0,1.1506]
[1646982983385,0.05405551,2595.5,2594.9,0.00409408]
[1646982983586,0.51605551,2595.5,2594.9,0.00409408]
[1646982983787,1.51605551,2595.5,2594.8,1.14729247]
[1646982983990,1.51605551,2595.5,2594.8,4.14729247]
[1646982984788,0.00117059,2595.1,2594.8,3.0]
[1646982984988,0.00117059,2595.1,2594.9,3.0]
[1646982985414,0.00117059,2595.1,2594.7,4.0397]
[1646982985614,0.00117059,2595.1,2594.9,3.0]
[1646982985817,0.00117059,2595.1,2595.0,1.1232456]
[1646982987025,0.00117059,2595.1,2594.9,0.00440798]
[1646982987224,0.00117059,2595.1,2594.9,3.00440798]
[1646982987423,0.00117059,2595.1,2594.9,3.0]
[1646982987823,0.00117059,2595.1,2594.9,0.00440803]
[1646982988024,0.00117059,2595.1,2594.9,3.00440803]
[1646982988723,0.00117059,2595.1,2594.9,3.0]
[1646982988967,0.00117059,2595.1,2594.9,3.00440803]
[1646982989369,0.00117059,2595.1,2594.9,0.00440803]
[1646982989972,0.00117059,2595.1,2594.7,4.0397]
[1646982990172,0.00117059,2595.1,2594.9,0.00440803]
[1646982991072,0.00117059,2595.1,2594.8,3.0]
[1646982991273,0.00117059,2595.1,2594.9,0.00440389]
[1646982992074,1.0,2595.0,2594.9,0.00440389]
[1646982992273,1.0,2595.0,2594.6,1.2176]
[1646982992274,1.0,2595.0,2594.3,0.97682563]
[1646982992476,0.00440209,2595.9,2595.1,1.01961973]
[1646982992724,13.34938478,2595.8,2595.1,1.01961973]
[1646982993025,1.0,2595.2,2594.9,0.07829558]
[1646982993225,1.462,2595.2,2594.9,0.00440389]
[1646982993425,1.0,2595.1,2594.6,0.25]
[1646982993625,1.0,2595.1,2594.9,0.00440384]
[1646982994426,0.462,2595.4,2595.1,1.03246763]
[1646982994626,0.462,2595.4,2595.2,0.06975564]
[1646982995928,0.462,2595.4,2595.2,0.06762314]
[1646982996127,0.462,2595.4,2595.2,0.00408376]
[1646982996567,0.462,2595.4,2595.2,0.07403755]
[1646982996967,0.462,2595.4,2595.2,0.06995379]
[1646982997368,0.462,2595.4,2595.2,0.07403755]
[1646982998174,0.462,2595.4,2595.2,0.06995379]
[1646982998374,1.1377,2595.7,2595.2,0.06995379]
[1646982998575,0.46600602,2595.9,2595.2,0.07396098]
[1646982998775,1.0,2595.4,2595.2,1.01741735]
[1646982998976,1.0,2595.4,2595.3,0.08116294]
[1646982999176,1.0,2595.4,2595.3,3.08116294]
[1646982999379,1.16830602,2595.9,2595.6,0.87336858]
[1646982999380,1.1643,2595.9,2595.6,0.87336858]
[1646982999575,1.0,2596.2,2595.6,0.87336858]
[1646982999776,1.58909649,2596.1,2595.6,0.87336858]
[1646982999977,0.154273,2596.0,2595.6,0.87336858]
[1646983000232,2.0,2596.2,2595.6,0.87336858]
[1646983000432,1.58908876,2596.1,2595.6,0.87336858]
[1646983000633,1.51559086,2596.4,2595.6,0.87336858]
[1646983000832,1.0,2596.2,2595.6,0.87336858]
[1646983001034,1.58909098,2596.1,2595.6,0.87336858]
[1646983001233,1.58909098,2596.0,2595.6,0.87336858]
[1646983001433,1.58909098,2596.0,2595.5,3.0]
[1646983001633,1.58909098,2596.0,2595.6,0.07069535]
[1646983002043,2.58909098,2596.0,2595.6,0.07069535]
[1646983002238,1.0,2596.0,2595.6,0.07069535]
[1646983002539,1.58916555,2595.9,2595.6,0.07069535]
[1646983002739,1.58916555,2595.9,2595.3,0.00219224]
[1646983002940,2.58916555,2595.8,2594.9,0.3198795]
[1646983003239,0.462,2596.2,2594.9,0.3198795]
[1646983003240,2.58916555,2595.7,2594.9,0.0698795]
[1646983003440,1.58916555,2595.6,2595.3,0.00425267]
[1646983003974,1.0,2595.6,2595.3,0.08593698]
[1646983004173,1.5893134,2595.5,2594.9,1.15371349]
[1646983004375,1.5893134,2595.5,2594.8,0.07392972]
[1646983004376,1.0,2595.3,2594.8,0.07392972]
[1646983004577,1.0,2595.3,2594.9,0.01701254]
[1646983004973,1.5894845,2595.2,2594.9,0.01701254]
[1646983005181,1.0,2595.3,2594.9,0.01701254]
[1646983005372,1.0,2595.3,2594.8,0.07392972]
[1646983005373,1.58948704,2595.2,2594.8,1.11677654]
[1646983005575,1.0,2595.3,2594.9,0.07794714]
[1646983005774,1.0,2595.3,2594.9,0.0820265]
[1646983006675,1.0,2595.3,2594.9,0.07794714]
[1646983006874,1.0,2595.3,2595.0,0.00407932]
[1646983007822,1.0,2595.3,2594.9,0.07794714]
[1646983008022,3.09169,2595.8,2595.2,0.08701434]
[1646983008023,1.0,2595.6,2595.2,0.08701434]
[1646983008222,1.5893308,2595.5,2595.0,0.00407928]
[1646983009122,1.5893308,2595.5,2594.9,0.08900624]
[1646983009323,1.5893308,2595.5,2595.1,0.00409093]
[1646983009729,0.00137416,2595.2,2595.1,0.00409093]
[1646983010228,0.00137416,2595.2,2594.9,0.08900624]
[1646983010427,0.00137416,2595.2,2595.0,0.00409101]
[1646983011468,0.00137416,2595.2,2594.9,0.08900624]
[1646983011668,0.00137416,2595.2,2595.0,0.00409104]
[1646983012674,0.00137416,2595.2,2594.9,0.08900624]
[1646983012875,0.00137416,2595.2,2595.0,3.00409025]
[1646983013074,0.00137416,2595.2,2595.1,0.08300114]
[1646983013876,0.00137416,2595.2,2594.8,0.07930929]
[1646983014077,0.00137416,2595.2,2595.0,0.00409021]
[1646983014078,1.59075467,2595.2,2595.0,0.00409021]
[1646983014278,0.00137416,2595.2,2595.0,0.00409021]
[1646983014476,1.59075939,2595.2,2595.0,0.00409021]
[1646983014882,0.00137416,2595.2,2595.0,0.00409021]
[1646983015139,0.00137416,2595.2,2594.9,1.11435755]
[1646983015330,0.00137416,2595.2,2595.0,0.08098586]
[1646983015530,0.00137416,2595.2,2595.0,0.00409025]
[1646983016137,1.5907073,2595.2,2595.0,0.00409025]
[1646983016335,0.00137416,2595.2,2594.7,3.0]
[1646983016535,1.0,2595.1,2595.0,0.00409031]
[1646983017340,1.58943346,2595.1,2595.0,0.00409031]
[1646983017546,1.462,2595.1,2594.2,4.8997394]
[1646983017737,1.462,2595.1,2594.9,0.00409034]
[1646983017738,1.58943346,2595.0,2594.9,0.00409034]
[1646983017937,1.58792876,2595.0,2594.9,0.00409034]
[1646983018737,1.58792876,2595.0,2594.2,4.8997394]
[1646983018975,1.0,2594.8,2594.4,0.01636415]
[1646983019175,1.3,2594.8,2594.4,0.01636415]
[1646983019971,1.3,2594.8,2594.3,1.002907]
[1646983020174,1.3,2594.8,2594.5,0.0040907]
[1646983021076,1.3,2594.8,2594.2,0.0433394]
[1646983021280,0.3,2594.8,2594.5,0.00409066]
[1646983021477,1.0,2594.7,2594.5,0.00409066]
[1646983021879,1.0,2594.6,2594.5,0.00409066]
[1646983022278,1.0,2594.6,2594.2,0.0433394]
[1646983022481,1.0,2594.6,2594.4,0.00409074]
[1646983023124,0.3,2594.8,2594.4,0.00409074]
[1646983023325,1.3,2594.8,2594.4,0.00409074]
[1646983023527,1.3,2594.8,2594.2,0.0433394]
[1646983023528,1.454341,2594.8,2594.2,0.0433394]
[1646983023827,0.04250753,2594.7,2594.4,0.00409078]
[1646983024026,0.50450753,2594.7,2594.4,0.00409078]
[1646983024225,1.0,2594.5,2594.4,0.00409078]
[1646983024630,1.0,2594.5,2594.2,0.0433394]
[1646983024825,1.0,2594.5,2594.3,0.00409082]
[1646983025926,0.00137541,2594.6,2594.2,3.0433394]
[1646983026125,0.00137541,2594.6,2594.3,0.08078791]
[1646983026371,0.00137541,2594.6,2594.3,0.00409086]
[1646983026372,1.00137541,2594.6,2594.3,0.00409086]
[1646983027072,1.00137541,2594.6,2594.2,0.0433394]
[1646983027273,1.00137541,2594.6,2594.3,0.00409083]
[1646983027474,1.00137541,2594.6,2594.3,0.07351983]
[1646983027673,1.00137541,2594.6,2594.3,0.00409083]
[1646983027880,1.00137541,2594.6,2594.3,0.08576034]
[1646983028277,1.00137541,2594.6,2594.3,0.08166951]
[1646983028478,1.0,2594.5,2594.3,0.08576034]
[1646983029078,1.0,2594.5,2594.3,0.00409083]
[1646983029478,1.0,2594.5,2594.2,0.0433394]
[1646983029678,1.0,2594.5,2594.3,0.00409087]
[1646983030132,0.00137541,2594.6,2594.3,0.00409087]
[1646983030324,1.0,2594.4,2594.3,0.00409087]
[1646983030723,1.0,2594.4,2594.2,0.0433394]
[1646983030923,1.0,2594.4,2594.2,0.04743031]
[1646983032026,1.0,2594.4,2594.2,0.04743035]
[1646983033032,1.0,2594.4,2594.2,0.0433394]
[1646983033227,1.0,2594.4,2594.2,0.04743035]
[1646983034272,1.0,2594.4,2594.2,0.0433394]
[1646983034475,1.0,2594.4,2594.2,0.04743035]
[1646983035476,1.0,2594.4,2594.2,0.0433394]
[1646983035680,1.0,2594.4,2594.2,0.04743035]
[1646983036378,4.5,2594.3,2594.2,0.04743035]
[1646983036578,4.5,2594.3,2594.2,0.0433394]
[1646983036579,1.0,2594.3,2594.2,0.0433394]
[1646983036979,4.5,2594.5,2594.2,0.04743035]
[1646983037180,1.0,2594.3,2594.2,0.04743035]
[1646983037381,4.5,2594.3,2594.2,0.04743035]
[1646983037840,4.5,2594.3,2594.2,0.0433394]
[1646983037841,7.1039,2594.3,2594.2,0.0433394]
[1646983038039,0.0866788,2594.1,2593.8,0.0855707]
[1646983038241,0.5486788,2594.1,2593.8,0.0855707]
[1646983038437,0.9984,2593.9,2593.8,0.0855707]
[1646983038937,2.42438,2593.9,2593.7,0.01636641]
[1646983039138,2.42438,2593.9,2593.6,0.3854]
[1646983039337,1.42598,2593.9,2593.7,0.0040913]
[1646983039538,0.9976,2593.8,2593.7,0.0040913]
[1646983040137,4.4976,2593.8,2593.7,0.0040913]
[1646983040344,4.4976,2593.8,2593.3,0.08488371]
[1646983040543,4.4976,2593.8,2593.6,0.00409138]
[1646983041146,3.5,2593.7,2593.6,0.00409138]
[1646983041371,0.9976,2593.8,2593.6,0.00409138]
[1646983041570,0.9976,2593.8,2593.3,0.08488371]
[1646983041771,0.9976,2593.8,2593.6,0.00409143]
[1646983041971,0.96398,2593.9,2593.6,0.00409143]
[1646983042375,0.9976,2593.8,2593.6,0.00409143]
[1646983042574,0.9976,2593.8,2593.3,0.08488371]
[1646983042979,0.9976,2593.8,2593.6,0.00409139]
[1646983043779,0.3,2593.9,2593.4,0.07095675]
[1646983043977,0.94711407,2593.7,2593.4,0.07095675]
[1646983044177,3.5,2593.6,2593.4,0.07095675]
[1646983044379,1.24711407,2593.7,2593.4,0.07095675]
[1646983044578,3.5,2593.6,2593.4,0.07095675]
[1646983044778,0.3,2593.7,2593.4,0.07095675]
[1646983044978,0.9464,2593.6,2593.4,0.07095675]
[1646983045243,1.2464,2593.6,2593.2,0.08322568]
[1646983045443,4.80151424,2593.9,2593.4,0.00409158]
[1646983045444,0.96408,2593.7,2593.4,0.00409158]
[1646983045644,0.9464,2593.5,2593.4,0.00409158]
[1646983046049,0.9464,2593.5,2593.4,0.00251018]
[1646983046247,0.9464,2593.5,2593.2,0.08322568]
[1646983046445,0.96408,2593.7,2593.2,0.08322568]
[1646983046646,0.9464,2593.4,2593.2,0.08322568]
[1646983046846,0.9464,2593.4,2593.3,0.00409162]
[1646983047448,0.9464,2593.4,2593.2,0.08322568]
[1646983047851,0.3,2593.5,2593.2,0.08322568]
[1646983048053,0.9464,2593.3,2593.2,0.08322568]
[1646983048251,1.2464,2593.3,2593.2,0.08322568]
[1646983049071,3.8,2593.3,2593.2,0.08322568]
[1646983049269,4.8,2593.3,2593.2,0.08322568]
[1646983049469,5.7464,2593.3,2593.2,0.08322568]
[1646983050169,6.2084,2593.3,2593.1,1.0]
[1646983050372,3.5,2593.2,2593.1,1.0]
[1646983050767,0.9464,2593.2,2593.1,1.0]
[1646983050967,0.9464,2593.2,2593.1,1.07762844]
[1646983051967,0.00119638,2593.4,2593.1,1.07762844]
[1646983051968,0.00119638,2593.4,2593.1,1.0]
[1646983052168,0.00119638,2593.4,2593.2,0.08213202]
[1646983052368,0.00119638,2593.4,2593.3,3.0]
[1646983053227,0.00119638,2593.4,2593.1,1.0]
[1646983053625,0.00119638,2593.4,2593.2,3.0]
[1646983053829,0.00119638,2593.4,2593.2,0.00426331]
[1646983054627,0.00119638,2593.4,2593.1,1.0]
[1646983055027,0.00119638,2593.4,2593.2,0.00426336]
[1646983055928,0.00119638,2593.4,2593.1,1.0]
[1646983056128,0.00119638,2593.4,2593.2,0.00408715]
[1646983057177,0.00119638,2593.4,2593.1,1.0]
[1646983057380,0.00119638,2593.4,2593.3,3.0]
[1646983060722,0.00119638,2593.4,2593.1,1.0]
[1646983061020,0.00119638,2593.4,2593.2,0.0037825]
[1646983061220,0.00119638,2593.4,2593.2,3.0037825]
[1646983061821,0.00119638,2593.4,2593.2,3.0]
[1646983062124,0.00119638,2593.4,2593.2,3.00378254]
[1646983062621,0.00119638,2593.4,2593.3,0.09010385]
[1646983065078,0.00119638,2593.4,2593.2,3.00380522]
[1646983065079,0.00119638,2593.4,2593.2,2.99390907]
[1646983065478,0.00119638,2593.4,2593.2,2.99010385]
[1646983065678,0.00119638,2593.4,2593.2,2.99390911]
[1646983066683,0.00119638,2593.4,2593.2,2.99010385]
[1646983066881,0.00119638,2593.4,2593.2,2.99390811]
[1646983067280,0.00119638,2593.4,2593.2,0.00380426]
[1646983067928,0.00119638,2593.4,2593.1,3.99010385]
[1646983068130,0.00119638,2593.4,2593.2,0.00380296]
[1646983068326,0.00119638,2593.4,2593.3,2.99010385]
[1646983070630,0.00119638,2593.4,2593.3,2.89010385]
[1646983071028,0.00119638,2593.4,2593.2,0.00380303]
[1646983071228,0.00119638,2593.4,2593.2,2.89390688]
[1646983071484,0.00119638,2593.4,2593.2,2.89010385]
[1646983071882,0.00119638,2593.4,2593.2,2.89390704]
[1646983072677,0.00119638,2593.4,2593.2,2.89010385]
[1646983072881,0.00119638,2593.4,2593.2,2.89390704]
[1646983073282,0.00119638,2593.4,2593.2,0.00380319]
[1646983073683,0.05027077,2593.4,2593.2,0.00380319]
[1646983073881,0.05027077,2593.4,2593.1,1.0]
[1646983074283,0.05027077,2593.4,2593.2,0.00380318]
[1646983074486,3.55027077,2593.4,2593.2,0.00380318]
[1646983074682,0.05027077,2593.4,2593.2,0.00380318]
[1646983075127,0.05027077,2593.4,2593.1,0.95]
[1646983075328,0.05027077,2593.4,2593.2,0.00380317]
[1646983075531,0.00119638,2593.4,2593.3,2.89010385]
[1646983075929,0.30119638,2593.4,2593.2,0.00380317]
[1646983076128,0.00119638,2593.4,2593.2,0.00380317]
[1646983076329,0.00119638,2593.4,2593.1,0.95]
[1646983076528,0.00119638,2593.4,2593.2,0.00380317]
[1646983077131,0.46319638,2593.4,2593.2,0.00380317]
[1646983077528,0.46319638,2593.4,2593.1,0.95]
[1646983077529,0.05457757,2593.3,2593.1,0.95]
[1646983077732,0.05457757,2593.3,2593.2,0.00380317]
[1646983078732,0.05457757,2593.3,2593.1,0.95]
[1646983078979,0.00119638,2593.4,2593.2,2.89010385]
[1646983080075,0.00119638,2593.4,2593.1,0.95]
[1646983080275,0.00119638,2593.4,2593.2,0.00380318]
[1646983081079,0.00119638,2593.4,2593.1,0.95]
[1646983081477,0.00119638,2593.4,2593.2,0.0040973]
[1646983082277,0.00119638,2593.4,2593.2,2.89420115]
[1646983082480,0.00119638,2593.4,2593.2,0.00409733]
[1646983082735,0.05260583,2593.3,2593.2,0.00409733]
[1646983083536,0.05260583,2593.3,2593.1,0.95]
[1646983083736,0.05260583,2593.3,2593.1,3.84420122]
[1646983084739,0.00119638,2593.4,2593.1,3.84010385]
[1646983084940,0.00119638,2593.4,2593.3,2.89010385]
[1646983085145,0.00119638,2593.4,2593.3,3.27540385]
[1646983085146,9.638e-05,2593.4,2593.3,3.27540385]
[1646983086777,9.638e-05,2593.4,2593.3,2.89010385]
[1646983086975,9.638e-05,2593.4,2593.3,2.8837048]
[1646983089780,0.00130395,2593.4,2593.3,2.8837048]
[1646983100837,0.30130395,2593.4,2593.3,2.8837048]
[1646983101235,0.00130395,2593.4,2593.3,2.8837048]
[1646983104986,0.00130395,2593.4,2593.3,3.2690048]
[1646983105240,0.0866788,2594.1,2593.4,0.07204964]
[1646983105441,0.0866788,2594.1,2593.5,0.3853]
[1646983105640,0.0866788,2594.1,2593.5,0.4560226]
[1646983106543,0.0866788,2594.1,2593.9,2.8837048]
[1646983110195,0.08581197,2594.1,2593.9,2.8837048]
[1646983111199,0.07077695,2594.1,2593.9,2.8837048]
[1646983116137,0.07077695,2594.1,2593.9,2.8821696]
[1646983119985,0.07077695,2594.1,2593.8,0.00382418]
[1646983120228,0.07077695,2594.1,2594.0,2.8821696]
[1646983121032,0.07077695,2594.1,2593.8,0.00382421]
[1646983121236,0.07077695,2594.1,2594.0,2.8821696]
[1646983121635,0.07077695,2594.1,2593.8,0.00382421]
[1646983121836,0.07077695,2594.1,2594.0,2.8821696]
[1646983122636,1.66073171,2594.1,2594.0,2.8821696]
[1646983122935,0.07077695,2594.1,2594.0,2.8821696]
[1646983123134,0.37077695,2594.1,2594.0,2.8821696]
[1646983123336,0.07077695,2594.1,2594.0,2.8821696]
[1646983123536,1.66072747,2594.1,2594.0,2.8821696]
[1646983123737,1.66072747,2594.1,2593.8,0.00382206]
[1646983123738,1.96072747,2594.1,2593.9,2.8821696]
[1646983123985,3.5,2594.0,2593.9,2.8821696]
[1646983124181,3.5,2594.0,2593.8,0.00382206]
[1646983124182,3.962,2594.0,2593.8,0.00382206]
[1646983124383,3.962,2594.0,2593.7,2.8821696]
[1646983124384,0.762,2594.0,2593.7,2.8821696]
[1646983124781,0.762,2594.0,2593.8,0.00382202]
[1646983125286,3.5,2593.9,2593.8,0.00382202]
[1646983125485,0.762,2594.0,2593.7,2.8821696]
[1646983125889,0.762,2594.0,2593.8,0.00382234]
[1646983126493,0.762,2594.0,2593.9,2.8821696]
[1646983126689,2.35212932,2594.0,2593.9,2.8821696]
[1646983127289,5.85212932,2594.0,2593.9,2.8821696]
[1646983127628,5.85212932,2594.0,2593.8,2.88599194]
[1646983127836,1.762,2594.0,2593.8,2.88599194]
[1646983128032,1.762,2594.0,2593.8,2.8821696]
[1646983128233,0.762,2594.0,2593.8,2.88599194]
[1646983128632,1.59014725,2593.9,2593.8,2.88599194]
[1646983128833,1.59014077,2593.9,2593.8,2.88599194]
[1646983129138,1.59014077,2593.9,2593.8,2.8821696]
[1646983133699,0.3,2594.0,2593.8,2.8821696]
[1646983133897,0.35591349,2594.0,2593.8,2.8821696]
[1646983134100,0.05591349,2594.0,2593.8,2.8821696]
[1646983134303,0.07077695,2594.1,2593.8,2.8821696]
[1646983134598,1.59009195,2594.0,2593.7,0.00382236]
[1646983135001,1.59009195,2594.0,2593.9,2.8821696]
[1646983136134,5.09009195,2594.0,2593.9,2.8821696]
[1646983136635,1.59009195,2594.0,2593.9,2.8821696]
[1646983136837,0.37077695,2594.1,2593.9,2.8821696]
[1646983137237,0.07077695,2594.1,2593.9,2.8821696]
[1646983138536,0.06938661,2594.1,2593.9,2.8821696]
[1646983139584,0.06938661,2594.1,2594.0,0.0020769]
[1646983139988,1.95941236,2594.1,2594.0,0.0020769]
[1646983140185,0.36938661,2594.1,2594.0,0.0020769]
[1646983140587,0.06938661,2594.1,2594.0,0.0020769]
[1646983140789,1.65944244,2594.1,2594.0,0.0020769]
[1646983141188,1.95944244,2594.1,2594.0,0.0020769]
[1646983142645,1.90944244,2594.1,2594.0,0.0020769]
[1646983144253,1.84005583,2594.1,2594.0,0.0020769]
[1646983144656,1.84005583,2594.1,2593.9,2.8821696]
[1646983144854,1.59005583,2594.0,2593.9,2.8821696]
[1646983145753,1.54005583,2594.0,2593.9,2.8821696]
[1646983146880,5.04005583,2594.0,2593.9,2.8821696]
[1646983147079,1.54005583,2594.0,2593.9,2.8821696]
[1646983149386,1.49005583,2594.0,2593.9,2.8821696]
[1646983151435,1.54673505,2594.0,2593.9,2.8821696]
[1646983151638,1.49005583,2594.0,2593.9,2.8821696]
[1646983154385,1.53473715,2594.0,2593.9,2.8821696]
[1646983155385,1.49005583,2594.0,2593.9,2.8821696]
[1646983155786,1.0,2594.3,2594.0,4.0]
[1646983155991,0.154384,2594.5,2594.2,2.8821696]
[1646983156187,0.70966368,2595.1,2594.5,0.3853]
[1646983156386,1.0,2595.2,2595.0,2.8821696]
[1646983156588,0.71348354,2595.5,2595.0,2.8821696]
[1646983156786,0.71348354,2595.5,2594.7,0.07194704]
[1646983156987,0.70966368,2595.5,2595.4,2.8821696]
[1646983157185,0.70966368,2595.5,2595.4,1.18662413]
[1646983157186,0.00382065,2595.5,2595.4,1.18662413]
[1646983157639,0.00382065,2595.5,2595.1,1.18662413]
[1646983158039,1.00966368,2595.6,2594.7,0.07194704]
[1646983158237,1.00966368,2595.6,2595.1,1.18662413]
[1646983158439,0.00382079,2595.5,2595.1,1.18662413]
[1646983159237,1.00966368,2595.6,2595.1,1.18662413]
[1646983159440,1.73294515,2595.5,2594.8,1.18662413]
[1646983159639,0.05118403,2595.4,2594.8,1.18662413]
[1646983161039,0.05118403,2595.4,2594.7,0.07194704]
[1646983161482,0.05118403,2595.4,2594.9,1.18662413]
[1646983162083,0.05118403,2595.4,2594.5,7.7390876]
[1646983162382,0.05118403,2595.4,2594.9,1.18662413]
[1646983162790,0.05118403,2595.4,2594.5,7.4738]
[1646983162986,0.05118403,2595.4,2595.0,1.18662413]
[1646983162987,0.96352,2595.2,2595.0,1.18662413]
[1646983163188,0.05016797,2595.1,2594.6,1.18662413]
[1646983163387,0.05016797,2595.1,2594.5,0.01528787]
[1646983163594,0.05016797,2595.1,2595.0,1.18662413]
[1646983163987,13.47348428,2595.5,2595.0,1.18662413]
[1646983163988,0.3,2595.2,2595.0,1.18662413]
[1646983164186,1.01037433,2595.4,2595.0,1.18662413]
[1646983164187,1.26345,2595.4,2595.0,1.18662413]
[1646983164988,0.3,2595.4,2595.0,1.18662413]
[1646983165231,1.47166368,2595.5,2595.0,1.18662413]
[1646983165436,1.47548433,2595.5,2595.0,1.18662413]
[1646983166435,1.47166368,2595.5,2595.0,1.18662413]
[1646983166640,0.76582069,2595.5,2595.0,1.18662413]
[1646983167036,2.43891437,2595.5,2595.0,1.18662413]
[1646983167235,2.43891437,2595.5,2594.5,0.0152882]
[1646983167236,2.59324037,2595.5,2594.5,0.0152882]
[1646983167435,2.62981037,2595.5,2594.5,0.0152882]
[1646983167637,3.47166368,2595.5,2594.7,1.18662413]
[1646983167835,2.47548419,2595.5,2594.7,1.18662413]
[1646983168040,3.47548419,2595.5,2594.7,1.18662413]
[1646983168235,2.47548419,2595.5,2594.7,1.18662413]
[1646983168536,0.96351,2595.3,2594.9,1.18662413]
[1646983168738,1.26351,2595.3,2594.9,1.18662413]
[1646983168982,1.26351,2595.3,2594.4,6.07192866]
[1646983169182,1.26351,2595.3,2594.5,0.01528776]
[1646983169984,1.26351,2595.3,2594.4,6.07192866]
[1646983169985,0.3,2595.3,2595.0,1.18662413]
[1646983170285,1.3,2595.4,2595.0,1.18662413]
[1646983170484,0.3,2595.4,2595.0,1.18662413]
[1646983170884,0.76582044,2595.5,2595.0,1.18662413]
[1646983171285,1.070656,2595.5,2595.0,1.18662413]
[1646983171486,0.76582065,2595.5,2594.5,0.01528805]
[1646983171686,0.96347,2595.4,2594.7,1.18662413]
[1646983171885,1.42547,2595.4,2594.7,1.18662413]
[1646983172085,4.52368544,2595.4,2594.6,1.18662413]